bitfinex-derivatives/quotes_ETHF0:USTF0_20251216
["timestamp","ask_amount","ask_price","bid_price","bid_amount"]
[1765845037040,1.9564,2973.5,2973.4,0.00792324]
[1765845037936,1.9564,2973.5,2973.4,2.25409264]
[1765845038935,1.5209,2972.2,2971.2,4.18745872]
[1765845039134,1.9286694,2972.0,2971.4,1.4931694]
[1765845039435,1.9286694,2972.0,2971.6,2.9431694]
[1765845039436,0.7544,2971.7,2971.6,2.9431694]
[1765845039637,1.9564,2972.0,2971.9,0.753]
[1765845039938,1.9564,2972.0,2971.9,0.0028458]
[1765845040439,3.4495694,2972.0,2971.9,0.1828458]
[1765845040642,3.4495694,2972.0,2971.9,0.0028458]
[1765845041132,1.9564,2972.0,2971.9,1.4528458]
[1765845041333,1.9564,2972.0,2971.9,1.7528458]
[1765845041540,3.4495694,2972.0,2971.9,0.04719397]
[1765845041938,1.5209,2971.8,2971.7,1.45504524]
[1765845042234,1.5209,2971.8,2971.7,1.72504524]
[1765845042538,1.5209,2971.8,2971.7,1.45815631]
[1765845046544,0.7544,2971.8,2971.7,1.45815631]
[1765845046930,1.5209,2971.8,2971.7,1.45815631]
[1765845047837,1.5209,2971.8,2971.7,0.76115631]
[1765845048247,1.5209,2971.8,2971.7,1.45815631]
[1765845049241,1.5209,2971.8,2971.7,0.76115631]
[1765845051040,3.0140694,2971.8,2971.7,0.00815631]
[1765845051546,3.0140694,2971.8,2971.7,0.76115631]
[1765845051842,1.5209,2971.8,2971.7,1.45815631]
[1765845053636,1.5209,2971.8,2971.7,0.76115631]
[1765845054444,0.7544,2971.8,2971.7,1.45815631]
[1765845054641,1.9564,2972.0,2971.9,1.45]
[1765845054841,1.9564,2972.0,2971.9,0.753]
[1765845055844,1.5209,2971.8,2971.7,1.45815631]
[1765845057242,1.5209,2971.8,2971.7,0.76115631]
[1765845057937,3.01561965,2971.8,2971.7,0.00815631]
[1765845058640,3.01561965,2971.8,2970.6,0.16833]
[1765845058641,10.5103393,2971.8,2970.6,0.16833]
[1765845058946,1.9564,2971.0,2970.9,0.753]
[1765845059143,1.9564,2971.0,2970.9,3.003]
[1765845059540,1.96029941,2971.0,2970.9,2.25373614]
[1765845060344,0.43939941,2971.0,2970.4,1.45]
[1765845060641,0.43939941,2971.0,2970.9,1.45]
[1765845060642,1.96029941,2971.0,2970.9,1.45]
[1765845060845,1.5209,2970.6,2970.5,1.45]
[1765845061246,1.5209,2970.6,2970.5,1.4539684]
[1765845061850,1.5209,2970.6,2970.5,0.0039684]
[1765845062149,1.5209,2970.6,2970.5,1.5180684]
[1765845063049,1.4368,2969.7,2968.2,1.49471965]
[1765845063351,0.4534,2970.0,2968.0,0.46261924]
[1765845063352,2.93151965,2969.1,2969.0,2.64]
[1765845063553,0.4534,2969.0,2968.0,1.91941965]
[1765845063749,2.93151965,2968.6,2968.5,1.5005]
[1765845063952,2.93151965,2968.6,2968.5,4.1342817]
[1765845063953,1.43969168,2968.6,2968.5,4.1342817]
[1765845064147,0.00289168,2968.6,2968.5,4.3842817]
[1765845064347,0.00289168,2968.6,2968.5,5.87900135]
[1765845064749,0.4534,2969.5,2968.5,11.87900135]
[1765845065048,2.93151965,2968.6,2968.5,3.3731817]
[1765845065245,2.93151965,2968.6,2968.5,0.0037817]
[1765845065445,0.4534,2968.5,2967.2,0.16852]
[1765845065650,1.49471965,2968.2,2967.6,1.49471965]
[1765845065848,2.93151965,2968.2,2968.1,0.7394]
[1765845066045,1.8902,2968.5,2968.4,0.7394]
[1765845066250,1.8902,2968.5,2968.4,1.5005]
[1765845066443,1.89447335,2968.5,2968.4,1.50402166]
[1765845066847,1.16537335,2968.5,2968.4,1.50402166]
[1765845067045,0.00427335,2968.5,2968.4,1.50402166]
[1765845067855,0.00427335,2968.5,2968.4,4.01248166]
[1765845075269,2.41140984,2969.4,2969.3,1.5005]
[1765845075474,0.7077,2968.8,2968.7,0.90784]
[1765845075674,1.4368,2968.8,2968.7,1.66894]
[1765845076275,0.7077,2968.8,2968.7,1.66894]
[1765845076471,0.71111784,2968.8,2968.7,1.66894]
[1765845077368,1.8902,2968.5,2968.4,1.50402166]
[1765845077570,1.8902,2968.5,2968.4,1.79402166]
[1765845077772,1.1611,2968.5,2968.4,1.79402166]
[1765845078074,1.44021784,2968.8,2968.7,0.7394]
[1765845078480,1.44021784,2968.8,2968.7,1.5005]
[1765845079171,1.44021784,2968.8,2968.7,0.7394]
[1765845079372,1.4368,2968.5,2968.4,1.50402166]
[1765845079574,1.4368,2968.5,2968.4,1.98402166]
[1765845080479,0.7077,2968.5,2968.4,1.98402166]
[1765845080678,1.8902,2968.5,2968.4,1.98402166]
[1765845080874,1.8902,2968.5,2968.4,1.50402166]
[1765845081075,1.8902,2968.5,2968.4,0.74292166]
[1765845081285,2.86593164,2968.5,2968.4,0.00062998]
[1765845081574,8.86593164,2968.5,2968.4,0.00062998]
[1765845081769,8.86593164,2968.5,2967.1,40.8]
[1765845081972,0.4534,2968.0,2967.1,2.84]
[1765845082172,0.97573164,2967.9,2967.1,2.84]
[1765845082376,2.41253164,2967.8,2967.7,0.7394]
[1765845082683,2.41253164,2967.8,2967.7,2.3594]
[1765845082881,2.41253164,2967.8,2967.7,2.36256202]
[1765845084682,2.41253164,2967.8,2967.7,3.12366202]
[1765845084884,2.41253164,2967.8,2967.7,2.36256202]
[1765845086885,2.41253164,2967.8,2967.7,1.62316202]
[1765845087379,2.41253164,2967.8,2967.7,2.36256202]
[1765845088687,2.41253164,2967.8,2967.7,3.12366202]
[1765845089284,4.22623233,2967.8,2967.7,3.12366202]
[1765845089489,3.49713233,2967.8,2967.7,3.12366202]
[1765845089692,4.22623233,2967.8,2967.7,2.36256202]
[1765845090286,4.22623233,2967.8,2967.7,1.62316202]
[1765845090888,4.22623233,2967.8,2967.7,2.36256202]
[1765845091589,4.22623233,2967.8,2967.7,3.12366202]
[1765845091889,2.41253164,2967.8,2967.7,2.34736202]
[1765845092390,2.41253164,2967.8,2967.7,3.07206202]
[1765845092585,0.97573164,2967.8,2967.7,4.57107693]
[1765845092792,2.78453886,2967.8,2967.7,4.57107693]
[1765845092986,2.78453886,2967.8,2967.7,3.07206202]
[1765845093187,3.51680833,2967.8,2967.7,3.07206202]
[1765845093384,3.51680833,2967.8,2967.7,1.62316202]
[1765845093385,4.21800833,2967.8,2967.7,1.62316202]
[1765845093580,4.21800833,2967.8,2967.7,2.32896202]
[1765845093784,5.71702324,2967.8,2967.7,1.62316202]
[1765845094189,2.40853164,2967.8,2967.7,2.32896202]
[1765845094693,2.40853164,2967.8,2967.7,3.05366202]
[1765845095285,1.70733164,2967.8,2967.7,3.05366202]
[1765845096082,1.70733164,2967.8,2967.7,1.43366202]
[1765845096392,2.40853164,2967.8,2967.7,1.60366202]
[1765845096593,2.40853164,2967.8,2967.7,1.43366202]
[1765845096794,0.97573164,2967.8,2967.7,1.43366202]
[1765845097201,2.40853164,2967.8,2967.7,1.43366202]
[1765845099000,1.70733164,2967.8,2967.7,1.43366202]
[1765845099900,1.70733164,2967.8,2967.7,1.44366202]
[1765845101500,0.97573164,2967.8,2967.7,1.44366202]
[1765845103107,1.43785381,2968.1,2968.0,1.4305]
[1765845103407,2.41853771,2968.1,2968.0,1.4305]
[1765845103606,0.7316,2967.8,2967.7,1.43366202]
[1765845103909,2.4134839,2967.8,2967.7,1.54366202]
[1765845104298,1.7122839,2967.8,2967.7,1.54366202]
[1765845105407,2.4134839,2967.8,2967.7,1.54366202]
[1765845105610,2.4134839,2967.8,2967.7,0.11316202]
[1765845106010,2.4134839,2967.8,2967.7,0.81896202]
[1765845106212,2.4134839,2967.8,2967.7,0.11316202]
[1765845106804,2.4134839,2967.8,2967.7,0.81896202]
[1765845108811,2.4134839,2967.8,2967.7,0.11316202]
[1765845109017,2.4134839,2967.8,2967.7,0.81896202]
[1765845109411,0.9806839,2967.8,2967.7,1.54366202]
[1765845109612,2.4134839,2967.8,2967.7,0.81896202]
[1765845110414,2.4134839,2967.8,2967.7,0.11316202]
[1765845111212,2.4134839,2967.8,2967.7,0.81896202]
[1765845111916,2.4134839,2967.8,2967.7,1.54366202]
[1765845113616,2.4134839,2967.8,2967.7,0.81896202]
[1765845115020,2.4134839,2967.8,2967.7,1.54366202]
[1765845115321,0.9806839,2967.8,2967.7,1.54366202]
[1765845116220,1.43785381,2968.1,2968.0,1.4305]
[1765845116422,2.43486359,2968.1,2968.0,1.4305]
[1765845116721,1.4328,2967.8,2967.7,0.00316202]
[1765845116914,3.92865153,2967.8,2967.7,0.18316202]
[1765845117520,3.92865153,2967.8,2967.7,0.00316202]
[1765845118218,2.93164175,2967.8,2967.7,0.00316202]
[1765845118414,3.93865879,2967.8,2967.7,0.00316202]
[1765845118620,2.93164175,2967.8,2967.7,0.00316202]
[1765845118919,3.93865879,2967.8,2967.7,0.00316202]
[1765845119219,2.93164175,2967.8,2967.7,0.00316202]
[1765845119419,3.93865879,2967.8,2967.7,0.00316202]
[1765845119616,2.93164175,2967.8,2967.7,0.00316202]
[1765845119820,3.93865879,2967.8,2967.7,0.00316202]
[1765845120121,2.93164175,2967.8,2967.7,0.00316202]
[1765845120318,3.93865879,2967.8,2967.7,0.00316202]
[1765845120619,2.93164175,2967.8,2967.7,0.00316202]
[1765845121312,2.43974635,2967.8,2967.7,0.00316202]
[1765845121519,1.4328,2967.8,2967.7,0.00316202]
[1765845122717,3.93892863,2967.8,2967.7,0.00316202]
[1765845124125,1.7384652,2967.8,2967.7,0.00316202]
[1765845124425,1.4308,2967.8,2967.7,1.45896202]
[1765845124620,2.4376652,2967.8,2967.7,1.45896202]
[1765845124924,1.4308,2967.8,2967.7,1.45896202]
[1765845125125,2.4376652,2967.8,2967.7,0.70756202]
[1765845125330,1.4308,2967.8,2967.7,0.70756202]
[1765845125526,2.4376652,2967.8,2967.7,0.70756202]
[1765845125729,1.4308,2967.8,2967.7,0.00316202]
[1765845126023,2.4376652,2967.8,2967.7,0.00316202]
[1765845128732,2.4376652,2967.8,2967.7,1.45896202]
[1765845128925,0.7316,2967.8,2967.7,1.45896202]
[1765845129125,1.4656,2967.8,2967.7,1.45896202]
[1765845129324,1.4656,2967.8,2967.7,0.70756202]
[1765845130328,1.4656,2967.8,2967.7,1.45896202]
[1765845132431,1.4656,2967.8,2967.7,0.70756202]
[1765845133140,2.4724652,2967.8,2967.7,0.70756202]
[1765845133335,1.4656,2967.8,2967.7,0.00316202]
[1765845133731,1.4656,2967.8,2967.7,0.70756202]
[1765845134434,2.4724652,2967.8,2967.7,0.70756202]
[1765845134734,1.4656,2967.8,2967.7,0.70756202]
[1765845134923,2.4724652,2967.8,2967.7,0.00316202]
[1765845135127,1.4656,2967.8,2967.7,0.00316202]
[1765845135432,2.4724652,2967.8,2967.7,0.00316202]
[1765845135634,1.4656,2967.8,2967.7,0.70756202]
[1765845136223,2.4786807,2967.8,2967.7,0.70756202]
[1765845136422,1.4656,2967.8,2967.7,1.45896202]
[1765845136626,2.4786807,2967.8,2967.7,1.45896202]
[1765845136826,1.4656,2967.8,2967.7,1.45896202]
[1765845137040,2.4786807,2967.8,2967.7,1.45896202]
[1765845137234,1.4656,2967.8,2967.7,1.45896202]
[1765845137435,2.4786807,2967.8,2967.7,0.70756202]
[1765845137635,1.4656,2967.8,2967.7,0.70756202]
[1765845137837,2.4786807,2967.8,2967.7,0.70756202]
[1765845138133,1.4656,2967.8,2967.7,0.00316202]
[1765845138336,2.4786807,2967.8,2967.7,0.70756202]
[1765845138529,1.4656,2967.8,2967.7,0.70756202]
[1765845138729,2.4786807,2967.8,2967.7,0.70756202]
[1765845138930,1.4656,2967.8,2967.7,0.70756202]
[1765845139130,2.4786807,2967.8,2967.7,0.70756202]
[1765845139329,1.4656,2967.8,2967.7,0.70756202]
[1765845139530,1.9001,2968.0,2967.9,1.4558]
[1765845139731,2.91326754,2968.0,2967.9,1.4558]
[1765845139932,1.9001,2968.0,2967.9,0.7044]
[1765845140133,2.91327243,2968.0,2967.9,1.4558]
[1765845140728,2.21407243,2968.0,2967.9,1.4558]
[1765845140934,1.9001,2968.0,2967.9,1.4558]
[1765845141632,1.9001,2968.0,2967.9,0.7044]
[1765845142233,1.9001,2968.0,2967.9,1.4558]
[1765845143543,1.4656,2967.8,2967.7,0.00316202]
[1765845144833,0.7664,2967.8,2967.7,1.45896202]
[1765845145030,1.2009,2968.0,2967.9,0.7044]
[1765845145235,1.9001,2968.0,2967.9,1.4558]
[1765845146042,1.9001,2968.0,2967.9,0.7044]
[1765845146341,1.9001,2968.0,2967.9,1.4558]
[1765845146938,1.9001,2968.0,2967.9,0.7044]
[1765845147946,1.9001,2968.0,2967.9,1.4558]
[1765845148442,0.7664,2968.0,2967.9,1.4558]
[1765845148637,0.00505381,2968.1,2968.0,1.8809]
[1765845148838,0.00505381,2968.1,2968.0,1.4558]
[1765845148839,0.77145381,2968.1,2968.0,1.4558]
[1765845149040,1.4656,2967.8,2967.7,0.70756202]
[1765845149442,1.4656,2967.8,2967.7,1.45896202]
[1765845149644,0.7664,2967.8,2967.7,1.45896202]
[1765845150142,1.4656,2967.8,2967.7,1.45896202]
[1765845150738,1.4656,2967.8,2967.7,0.00316202]
[1765845152852,2.47854737,2967.8,2967.7,0.00316202]
[1765845153048,2.47854737,2967.8,2966.9,1.49926343]
[1765845153249,1.01294737,2967.7,2967.0,0.4144]
[1765845153456,1.01294737,2967.9,2967.0,2.9444]
[1765845153650,1.01294737,2967.8,2967.0,2.9444]
[1765845153846,1.01294737,2967.7,2967.0,4.44366343]
[1765845154052,1.01294737,2967.9,2967.0,4.44631932]
[1765845154247,2.43584737,2967.8,2967.7,0.7029]
[1765845154454,1.01294737,2968.0,2967.9,1.457]
[1765845154645,1.42795381,2968.1,2968.0,1.457]
[1765845155562,1.42795381,2968.1,2968.0,0.7029]
[1765845156352,0.72515381,2968.1,2968.0,1.457]
[1765845157151,1.42795381,2968.1,2968.0,1.457]
[1765845157755,0.00505381,2968.1,2968.0,1.457]
[1765845158157,0.72515381,2968.1,2968.0,1.457]
[1765845159455,0.72515381,2968.1,2968.0,2.95533786]
[1765845159756,1.42795381,2968.1,2968.0,2.95533786]
[1765845160153,1.42795381,2968.1,2968.0,1.457]
[1765845160555,1.4229,2967.7,2967.6,1.6255]
[1765845160760,1.4229,2967.7,2967.6,3.8055]
[1765845160964,0.7201,2967.7,2967.6,3.8055]
[1765845161151,0.7201,2967.7,2967.6,2.1855]
[1765845161354,1.8538,2968.0,2967.9,1.457]
[1765845162061,1.8538,2968.0,2967.9,0.7029]
[1765845162662,1.4229,2967.7,2967.6,3.12383786]
[1765845162863,1.4229,2967.7,2967.6,3.72383786]
[1765845163061,1.8538,2968.0,2967.9,0.7029]
[1765845163353,1.8538,2968.0,2967.9,1.457]
[1765845166065,1.8538,2968.0,2967.9,0.7029]
[1765845166965,1.8538,2968.0,2967.9,1.457]
[1765845167763,1.8538,2968.0,2967.9,0.7029]
[1765845170757,1.8538,2968.0,2967.9,1.457]
[1765845170758,1.151,2968.0,2967.9,1.457]
[1765845170961,1.42795381,2968.1,2968.0,1.457]
[1765845173370,1.8538,2968.0,2967.9,0.7029]
[1765845173667,1.8538,2968.0,2967.9,1.457]
[1765845176071,0.72515381,2968.1,2968.0,1.457]
[1765845176266,0.00505381,2968.1,2968.0,1.457]
[1765845176568,1.42795381,2968.1,2968.0,0.7029]
[1765845176770,1.42795381,2968.1,2968.0,1.457]
[1765845177766,0.72515381,2968.1,2968.0,1.457]
[1765845178467,0.00505381,2968.1,2968.0,5.80043786]
[1765845179368,2.44100376,2968.6,2968.5,0.7029]
[1765845179567,0.7201,2968.1,2968.0,1.62548]
[1765845179761,1.4229,2968.1,2968.0,1.457]
[1765845180771,1.4229,2967.9,2967.8,1.46205381]
[1765845180966,1.4229,2967.9,2967.8,1.57205381]
[1765845181278,2.92123786,2967.9,2967.8,0.11505381]
[1765845181970,1.4229,2967.1,2967.0,1.45965589]
[1765845182169,1.4229,2967.1,2967.0,4.06965589]
[1765845182770,1.4229,2967.1,2967.0,5.56799375]
[1765845183276,0.7201,2967.1,2967.0,5.56799375]
[1765845183464,1.8885,2967.5,2967.4,1.5118]
[1765845183668,1.8885,2967.5,2967.4,0.7449]
[1765845183970,1.8885,2967.5,2967.4,1.5118]
[1765845184172,1.8885,2967.5,2967.4,0.7449]
[1765845184972,1.8885,2967.5,2967.4,1.5118]
[1765845186678,1.1284,2967.5,2967.4,1.5118]
[1765845186874,1.1284,2967.5,2967.4,3.17864786]
[1765845187075,1.8885,2968.0,2967.9,0.7449]
[1765845189370,1.8885,2968.0,2967.9,1.5118]
[1765845189577,1.8885,2968.0,2967.9,0.7449]
[1765845190985,1.46265381,2968.3,2968.2,0.7449]
[1765845191784,1.9004,2968.0,2967.9,0.91338]
[1765845192080,0.6975,2967.4,2967.3,1.68032]
[1765845192382,1.4576,2967.4,2967.3,1.96032]
[1765845192578,1.4576,2967.4,2967.3,0.44852]
[1765845193083,1.4576,2967.4,2967.3,1.19342]
[1765845194480,1.4576,2967.4,2967.3,1.96032]
[1765845196785,1.4576,2967.4,2967.3,1.0249]
[1765845197678,1.4576,2967.4,2967.3,0.28]
[1765845202087,1.94159665,2967.5,2967.0,0.00265589]
[1765845202088,1.4576,2967.1,2967.0,0.00265589]
[1765845202383,2.95639665,2967.1,2967.0,1.67265589]
[1765845203585,1.4576,2967.1,2967.0,1.67265589]
[1765845204788,2.95639665,2967.1,2967.0,1.67265589]
[1765845207291,2.95639665,2967.1,2967.0,0.00265589]
[1765845214994,1.4576,2967.1,2967.0,0.00265589]
[1765845215192,2.95639665,2967.1,2967.0,0.00265589]
[1765845219384,2.95771896,2967.1,2967.0,0.00265589]
[1765845222194,1.4748,2966.1,2966.0,0.706]
[1765845222398,2.97491896,2966.1,2966.0,3.546]
[1765845222593,2.97491896,2966.1,2966.0,2.84]
[1765845223191,1.47880437,2966.1,2966.0,2.84274312]
[1765845223394,1.47880437,2966.1,2966.0,3.54874312]
[1765845224096,2.97892333,2966.1,2966.0,2.84274312]
[1765845224292,0.4579,2966.0,2964.7,0.16866]
[1765845224594,1.50011896,2965.7,2964.8,40.8]
[1765845224797,1.50011896,2965.7,2964.8,44.79011896]
[1765845224992,1.9327,2966.0,2965.9,0.706]
[1765845225392,1.9327,2966.0,2965.9,0.70933401]
[1765845225593,0.7312,2966.0,2965.9,1.41633401]
[1765845225791,0.00400437,2966.1,2966.0,1.8404]
[1765845225996,0.00505381,2966.3,2966.2,1.413]
[1765845226203,0.00505381,2966.3,2966.2,3.813]
[1765845227094,0.00896271,2966.3,2966.2,3.813]
[1765845227699,0.00896271,2966.3,2966.2,1.523]
[1765845228002,0.00896271,2966.3,2966.2,3.543]
[1765845230596,0.00896271,2966.3,2966.2,2.193]
[1765845230994,0.00896271,2966.3,2966.2,3.743]
[1765845236205,0.00896271,2966.3,2966.2,3.91158]
[1765845241008,1.4748,2966.0,2965.9,1.41633401]
[1765845241312,0.00896271,2966.3,2966.2,1.413]
[1765845241511,1.48376271,2966.3,2966.2,0.966]
[1765845241710,1.48376271,2966.3,2966.2,0.26]
[1765845241912,1.9327,2966.0,2965.9,0.706]
[1765845242213,1.9327,2966.0,2965.9,1.1822]
[1765845242413,1.9327,2966.0,2965.9,1.9279]
[1765845243014,1.9327,2966.0,2965.9,1.93140587]
[1765845243212,0.00896271,2966.3,2966.2,1.4879]
[1765845243512,0.00896271,2966.3,2966.2,2.98801896]
[1765845243815,0.707,2966.0,2965.9,0.17210587]
[1765845244008,1.8627,2966.0,2965.9,2.44140587]
[1765845244310,1.1387,2966.0,2965.9,2.44140587]
[1765845244516,1.43996271,2966.3,2966.2,0.7422]
[1765845244715,0.707,2966.0,2965.9,1.49140587]
[1765845244916,0.707,2966.0,2965.9,1.76140587]
[1765845245115,1.43996271,2966.3,2966.2,0.7422]
[1765845245315,0.707,2966.0,2965.9,1.49140587]
[1765845245616,1.431,2966.0,2965.9,1.76140587]
[1765845246009,0.707,2966.0,2965.9,1.76140587]
[1765845246316,1.8627,2966.0,2965.9,1.76140587]
[1765845246515,1.43996271,2966.3,2966.2,0.7422]
[1765845247418,0.707,2966.0,2965.9,1.49140587]
[1765845247607,0.707,2966.0,2965.9,1.77140587]
[1765845248008,1.431,2966.0,2965.9,1.77140587]
[1765845248218,1.8627,2966.0,2965.9,1.77140587]
[1765845250617,1.8627,2966.0,2965.9,0.28350587]
[1765845251921,0.4317,2966.0,2965.9,1.77140587]
[1765845252225,1.43996271,2966.3,2966.2,0.7422]
[1765845252426,1.8627,2966.0,2965.9,1.49140587]
[1765845252626,1.8627,2966.0,2965.9,0.91570587]
[1765845253029,1.8627,2966.0,2965.9,0.17350587]
[1765845253531,1.8627,2966.0,2965.9,0.91570587]
[1765845254231,1.8627,2966.0,2965.9,0.17350587]
[1765845256428,1.8627,2966.0,2965.9,1.66140587]
[1765845256630,1.8627,2966.0,2965.9,0.91570587]
[1765845256830,1.8627,2966.0,2965.9,1.66140587]
[1765845257331,1.8627,2966.0,2965.9,0.91570587]
[1765845259929,1.8627,2966.0,2965.9,1.66140587]
[1765845260128,1.8627,2966.0,2965.9,0.91570587]
[1765845261835,1.8627,2966.0,2965.9,0.17350587]
[1765845264335,1.8627,2966.0,2965.9,0.91570587]
[1765845264629,1.1387,2966.0,2965.9,1.66140587]
[1765845264938,0.707,2966.0,2965.9,1.66140587]
[1765845265637,0.707,2966.0,2965.9,1.49140587]
[1765845265837,1.8627,2966.0,2965.9,1.49140587]
[1765845266431,1.1387,2966.0,2965.9,1.49140587]
[1765845266631,1.431,2966.0,2965.9,1.49140587]
[1765845266827,0.707,2966.0,2965.9,1.49140587]
[1765845267034,1.431,2966.0,2965.9,1.49140587]
[1765845267433,2.45725888,2966.3,2966.2,1.4879]
[1765845267734,0.71596271,2966.3,2966.2,1.4879]
[1765845267943,1.43996271,2966.3,2966.2,1.4879]
[1765845268243,0.71596271,2966.3,2966.2,1.4879]
[1765845268436,0.00896271,2966.3,2966.2,1.4879]
[1765845271041,0.00896271,2966.3,2966.2,4.0779]
[1765845272437,0.00896271,2966.3,2966.2,4.24648]
[1765845272637,2.52845357,2967.2,2967.1,1.4857]
[1765845273033,2.52845357,2967.2,2967.1,0.7605]
[1765845273238,1.5095,2967.2,2967.1,0.7605]
[1765845273543,1.51192266,2967.2,2967.1,0.7605]
[1765845275449,0.74642266,2967.2,2967.1,1.4857]
[1765845275649,0.74642266,2967.2,2966.9,0.00505381]
[1765845275650,1.9323,2967.0,2966.9,0.00505381]
[1765845276738,1.9323,2967.0,2966.9,0.76555381]
[1765845277351,1.1668,2967.0,2966.9,1.49075381]
[1765845277650,1.9323,2967.0,2966.9,0.76555381]
[1765845278340,0.744,2967.0,2966.9,1.49075381]
[1765845278549,0.00242266,2967.2,2967.1,1.4857]
[1765845278848,1.51192266,2967.2,2967.1,1.4857]
[1765845280049,0.74642266,2967.2,2967.1,1.4857]
[1765845280644,1.51192266,2967.2,2967.1,1.4857]
[1765845282542,1.51192266,2967.2,2967.1,0.7605]
[1765845282743,1.51192266,2967.2,2966.9,0.00505381]
[1765845282744,1.9323,2967.0,2966.9,0.00505381]
[1765845283054,3.43182661,2967.0,2966.9,0.00505381]
[1765845286654,1.9323,2967.0,2966.9,0.00505381]
[1765845291060,3.43182661,2967.0,2966.9,0.00505381]
[1765845293360,1.9323,2967.0,2966.9,0.00505381]
[1765845294964,3.43182661,2967.0,2966.9,0.00505381]
[1765845295160,4.45080163,2967.0,2966.9,0.00104944]
[1765845295366,1.9323,2966.0,2965.9,0.76400587]
[1765845295562,1.9323,2966.0,2965.9,0.78400587]
[1765845297258,1.9323,2966.0,2965.9,0.02350587]
[1765845299163,1.9323,2966.0,2965.9,3.00873248]
[1765845299960,1.9323,2966.0,2965.9,2.28353248]
[1765845300161,1.9323,2966.0,2965.9,3.00873248]
[1765845300463,0.744,2966.0,2965.9,3.00873248]
[1765845300666,1.9323,2966.0,2965.9,3.00873248]
[1765845301568,1.9323,2966.0,2965.9,1.50920587]
[1765845301764,0.744,2966.0,2965.9,3.00873248]
[1765845301969,1.9328,2966.0,2965.9,3.00873248]
[1765845302369,1.9328,2966.0,2965.9,1.50920587]
[1765845302870,1.9328,2966.0,2965.9,0.02350587]
[1765845304463,0.744,2966.0,2965.9,2.98093248]
[1765845304670,0.7655,2966.0,2965.9,2.98093248]
[1765845305365,0.7655,2966.0,2965.9,1.48140587]
[1765845305568,1.516,2966.0,2965.9,1.48140587]
[1765845305768,1.9393,2966.0,2965.9,1.48140587]
[1765845305968,1.9393,2966.0,2965.9,0.76890587]
[1765845307071,1.9393,2966.0,2965.9,0.02350587]
[1765845308466,3.43882661,2966.0,2965.9,0.02350587]
[1765845309063,1.9393,2966.0,2965.9,0.02350587]
[1765845311069,1.9393,2966.0,2965.9,1.48140587]
[1765845312772,0.4228,2966.5,2965.9,1.48140587]
[1765845313573,0.7655,2966.0,2965.9,1.48140587]
[1765845313773,1.9393,2966.0,2965.9,1.48140587]
[1765845314774,1.9388,2966.5,2966.4,0.7454]
[1765845314971,1.9393,2966.0,2965.9,0.74890587]
[1765845315276,1.9393,2966.0,2965.9,0.02350587]
[1765845316670,1.9393,2966.0,2965.9,0.00350587]
[1765845319572,1.9393,2966.0,2965.9,0.74890587]
[1765845319775,1.9393,2966.0,2965.9,0.00350587]
[1765845323077,0.7655,2966.0,2965.9,1.46140587]
[1765845323375,1.516,2966.0,2965.9,1.46140587]
[1765845323765,1.9393,2966.0,2965.9,0.74890587]
[1765845323968,1.9393,2966.0,2965.9,1.46140587]
[1765845326373,2.9597984,2966.0,2965.9,1.46140587]
[1765845326678,2.9597984,2966.0,2965.9,0.74890587]
[1765845326977,2.9597984,2966.0,2965.9,0.00350587]
[1765845328479,2.9597984,2966.0,2965.9,0.74890587]
[1765845328680,2.9597984,2966.0,2965.9,0.00350587]
[1765845332485,2.9597984,2966.0,2965.9,0.74890587]
[1765845332781,2.9597984,2966.0,2965.9,0.00350587]
[1765845333679,4.46045824,2966.0,2965.9,0.00350587]
[1765845334080,2.9597984,2966.0,2965.9,0.00350587]
[1765845334281,4.46045824,2966.0,2965.9,0.00350587]
[1765845338378,1.472,2964.7,2964.6,0.7454]
[1765845338678,1.472,2964.7,2964.6,4.1692]
[1765845339384,1.47516039,2964.7,2964.6,4.17282605]
[1765845341083,0.71436039,2964.7,2964.6,4.17282605]
[1765845341288,1.47516039,2964.7,2964.6,4.17282605]
[1765845341888,0.71436039,2964.7,2964.6,4.17282605]
[1765845342783,0.00316039,2964.7,2964.6,4.17282605]
[1765845344289,0.71436039,2964.7,2964.6,4.17282605]
[1765845345984,1.47516039,2964.7,2964.6,4.17282605]
[1765845346385,1.47516039,2964.7,2964.6,3.39902605]
[1765845346786,1.47516039,2964.7,2964.6,4.17282605]
[1765845351397,1.47516039,2964.7,2964.6,3.39902605]
[1765845351591,1.47516039,2964.7,2964.6,2.65362605]
[1765845352696,0.4236,2964.5,2963.1,0.16875]
[1765845352999,1.472,2963.8,2963.7,0.7454]
[1765845353195,1.472,2963.8,2963.7,3.3154]
[1765845353395,1.472,2963.8,2963.7,4.0892]
[1765845353792,1.472,2963.8,2963.7,4.09311221]
[1765845353996,1.64069,2964.4,2964.3,1.5192]
[1765845354299,0.7112,2964.4,2964.3,1.5192]
[1765845354493,1.472,2964.4,2964.3,1.5192]
[1765845354689,1.47516039,2964.7,2964.6,1.5192]
[1765845354895,0.71436039,2964.7,2964.6,1.5192]
[1765845355502,0.00316039,2964.7,2964.6,1.5192]
[1765845355698,1.472,2964.6,2964.5,0.7454]
[1765845355905,1.472,2964.6,2964.5,1.5192]
[1765845356406,0.76396039,2964.7,2964.6,1.5192]
[1765845357291,0.00316039,2964.7,2964.6,1.5192]
[1765845358598,0.00316039,2964.7,2964.6,3.02116736]
[1765845359000,0.00505381,2964.9,2964.8,1.5192]
[1765845360004,0.00826734,2964.9,2964.8,1.5192]
[1765845361801,8.085,2965.8,2965.7,0.7454]
[1765845361999,1.4141,2965.3,2965.2,1.433]
[1765845362195,1.4141,2964.8,2964.7,0.6999]
[1765845362404,1.8617,2965.0,2964.9,0.6999]
[1765845362701,0.61622,2965.5,2964.9,0.7331]
[1765845362900,1.1566,2965.5,2965.4,1.433]
[1765845363105,1.87092445,2965.5,2964.9,1.50196736]
[1765845363706,0.45682445,2965.5,2965.4,1.433]
[1765845363906,1.16582445,2965.5,2965.4,1.433]
[1765845364209,1.87092445,2965.5,2965.4,1.433]
[1765845367515,1.87092445,2965.5,2965.4,0.6999]
[1765845367916,1.87092445,2965.5,2965.0,0.3528]
[1765845368207,1.87092445,2965.5,2965.4,0.6999]
[1765845368811,1.87092445,2965.5,2965.4,1.433]
[1765845376216,1.16582445,2965.5,2965.4,1.433]
[1765845376417,0.00922445,2965.5,2965.4,1.433]